[Event "World Junior U20 Girls 2018"]
[Site "Gebze"]
[Date "2018.09.14"]
[Round "10"]
[White "Tian, Shi Yuan"]
[Black "Caballero Quijano, Mitzy Mishell"]
[Result "0-1"]
[ECO "E16"]
[WhiteElo "1923"]
[BlackElo "2034"]
[Annotator "NA"]
[PlyCount "94"]
[EventDate "2018.09.05"]
[EventType "swiss"]
[EventCountry "TUR"]
[SourceTitle "playchess.com"]
[Source "ChessBase"]
[SourceQuality "1"]
[TimeControl "40/5400+30:1800+30"]

1. d4 {[%emt 0:00:30]} Nf6 {[%emt 0:00:30]} 2. Nf3 {[%emt 0:00:00]} e6 {[%emt 0:00:30]} 3. c4 {[%emt 0:01:00]} Bb4+ {[%emt 0:00:30]} 4. Bd2 {[%emt 0:00:30]} Bxd2+ {[%emt 0:00:00]} 5. Nbxd2 {[%emt 0:00:00]} O-O {[%emt 0:00:00]} 6. g3 {[%emt 0:02:00]} b6 {[%emt 0:00:30]} 7. Bg2 {[%emt 0:00:30]} Bb7 {[%emt 0:00:30]} 8. O-O {[%emt 0:00:00]} c5 {[%emt 0:05:30] LiveBook: 33 Games} 9. Rc1 {[%emt 0:09:00]} cxd4 {[%emt 0:05:30]} 10. Nb3 {[%emt 0:01:30]} d5 $146 {[%emt 0:07:30] E16: Damenindisch (Hauptfortsetzung mit Lb4)} ({Vorgänger:} 10... d6 11. Nbxd4 a6 12. b4 Nbd7 13. Nb3 Qc7 14. Qd4 a5 15. c5 bxc5 16. bxc5 d5 17. Rc2 Bc6 18. Rfc1 {1-0 (78) Azmaiparashvili,Z (2460)-Kholmov,R (2450) Vani 1985}) 11. Ne5 {[%emt 0:11:30]} Nbd7 {[%emt 0:01:30]} 12. Qxd4 {[%emt 0:01:30]} Rc8 {[%emt 0:04:30]} 13. Rfd1 {[%emt 0:08:30]} Nc5 {[%emt 0:04:30]} 14. Nxc5 {[%emt 0:06:30]} bxc5 {[%emt 0:00:30]} 15. Qf4 {[%emt 0:01:30]} Qa5 {[%emt 0:03:30]} 16. a3 {[%emt 0:04:30]} Rfd8 {[%emt 0:09:30]} 17. cxd5 {[%emt 0:00:30]} exd5 {[%emt 0:01:30]} 18. Bf3 {[%emt 0:10:30]} Qc7 {[%emt 0:14:30]} 19. e3 {[%emt 0:09:30]} Re8 {[%emt 0:01:30]} 20. Nd3 {[%emt 0:00:30]} Qb6 {[%emt 0:01:30]} 21. Rc2 {[%emt 0:05:30]} a5 {[%emt 0:00:30]} 22. Qh4 {[%emt 0:02:30]} h6 {[%emt 0:07:30]} 23. Qh3 {[%emt 0:03:30]} c4 {[%emt 0:11:43]} 24. Nc1 {[%emt 0:02:00]} Rc5 {[%emt 0:00:30]} 25. Ne2 {[%emt 0:00:30]} Rb5 {[%emt 0:00:34]} 26. Nc3 {[%emt 0:01:45]} Rb3 $11 {[%emt 0:03:13]} ({Better is} 26... d4 $1 $19 {[%cal Rd4c3]} 27. Nxb5 (27. Na4 $2 Bxf3 28. Nxb6 Bxd1 $19) 27... Bxf3 28. Rxd4 Qxb5) 27. Nxd5 {[%emt 0:08:26]} Bxd5 {[%emt 0:03:04]} 28. Bxd5 {[%emt 0:00:11]} Rxb2 {[%emt 0:00:08]} 29. Rxc4 {[%emt 0:04:52]} Rxf2 {[%emt 0:03:21]} 30. Rc8 {[%emt 0:01:43]} Qxe3 {[%emt 0:00:41]} 31. Rxe8+ {[%emt 0:01:14]} Nxe8 {[%emt 0:00:08]} 32. Kh1 {[%emt 0:00:44]} Rd2 {[%emt 0:01:37]} 33. Qh5 {[%emt 0:01:01]} Rxd1+ {[%emt 0:01:22]} 34. Qxd1 {[%emt 0:00:00]} Qxa3 {[%emt 0:01:01]} 35. Bb3 {[%emt 0:02:23]} Qe7 {[%emt 0:00:16]} 36. Qd5 {[%emt 0:00:09]} Nf6 {[%emt 0:00:55]} 37. Qa8+ {[%emt 0:01:02]} Kh7 {[%emt 0:00:11]} 38. Bc2+ {[%emt 0:00:15]} g6 {[%emt 0:00:07]} 39. Qxa5 {[%emt 0:00:12]} Qe2 {[%emt 0:00:41]} 40. Qa1 {[%emt 0:00:00]} Ng4 {[%emt 0:00:00]} 41. Bxg6+ {[%emt 0:03:33]} Kxg6 {[%emt 0:02:58]} 42. Qb1+ {[%emt 0:00:30]} Kg7 {[%emt 0:00:00]} 43. Qa1+ {[%emt 0:00:00]} f6 {[%emt 0:00:00]} 44. Qa7+ {[%emt 0:00:00]} Kg6 {[%emt 0:00:00]} 45. Qg1 {[%emt 0:01:30]} h5 {[%emt 0:01:00]} 46. Qb1+ {[%emt 0:00:30]} Kh6 {[%emt 0:01:30]} 47. Qc1+ {[%emt 0:00:30]} Ne3 {[%emt 0:00:30]} 0-1

[Event "World Junior U20 Girls 2018"]
[Site "Gebze"]
[Date "2018.09.14"]
[Round "10"]
[White "Koo, Wei Xin Rosamund"]
[Black "Koljevic, Nikolina"]
[Result "*"]
[ECO "D34"]
[WhiteElo "1918"]
[BlackElo "1898"]
[Annotator "NA"]
[PlyCount "34"]
[EventDate "2018.09.05"]
[EventType "swiss"]
[EventCountry "TUR"]
[SourceTitle "playchess.com"]
[Source "ChessBase"]
[SourceQuality "1"]
[TimeControl "40/5400+30:1800+30"]

1. d4 {[%emt 0:00:30]} d5 {[%emt 0:00:30]} 2. Nf3 {[%emt 0:00:30]} e6 {[%emt 0:00:30]} 3. c4 {[%emt 0:00:30]} c5 {[%emt 0:00:30]} 4. cxd5 {[%emt 0:00:30]} exd5 {[%emt 0:00:00]} 5. g3 {[%emt 0:00:00]} Nf6 {[%emt 0:00:00]} 6. Bg2 {[%emt 0:00:00]} Be7 {[%emt 0:00:00]} 7. O-O {[%emt 0:00:00]} O-O {[%emt 0:00:00]} 8. Nc3 {[%emt 0:00:00]} Nc6 {[%emt 0:00:30]} 9. Bg5 {[%emt 0:00:00]} cxd4 {[%emt 0:00:30]} 10. Nxd4 {[%emt 0:00:00]} h6 {[%emt 0:00:00]} 11. Be3 {[%emt 0:00:00]} Bg4 {[%emt 0:00:00]} 12. h3 {[%emt 0:00:00]} Be6 {[%emt 0:00:00]} 13. Rc1 {[%emt 0:00:00]} Rc8 {[%emt 0:00:00]} 14. Nxc6 {[%emt 0:00:00]} bxc6 {[%emt 0:00:00]} 15. Na4 {[%emt 0:00:30]} Qd7 {[%emt 0:01:00]} 16. Nc5 $11 {[%emt 0:07:30]} Rfe8 {[%emt 0:01:30]} 17. Kh2 {[%emt 0:03:30]} Bf5 {[%emt 0:02:30]} *

[Event "World Junior U20 Girls 2018"]
[Site "Gebze"]
[Date "2018.09.14"]
[Round "10"]
[White "Koo, Wei Xin Rosamund"]
[Black "Koljevic, Nikolina"]
[Result "1-0"]
[ECO "D34"]
[WhiteElo "1918"]
[BlackElo "1898"]
[Annotator "NA"]
[PlyCount "135"]
[EventDate "2018.09.05"]
[EventType "swiss"]
[EventCountry "TUR"]
[SourceTitle "playchess.com"]
[Source "ChessBase"]
[SourceQuality "1"]
[TimeControl "40/5400+30:1800+30"]

1. d4 {[%emt 0:00:30]} d5 {[%emt 0:00:30]} 2. Nf3 {[%emt 0:00:30]} e6 {[%emt 0:00:30]} 3. c4 {[%emt 0:00:30]} c5 {[%emt 0:00:30]} 4. cxd5 {[%emt 0:00:30]} exd5 {[%emt 0:00:00]} 5. g3 {[%emt 0:00:00]} Nf6 {[%emt 0:00:00]} 6. Bg2 {[%emt 0:00:00]} Be7 {[%emt 0:00:00]} 7. O-O {[%emt 0:00:00]} O-O {[%emt 0:00:00]} 8. Nc3 {[%emt 0:00:00]} Nc6 {[%emt 0:00:30]} 9. Bg5 {[%emt 0:00:00]} cxd4 {[%emt 0:00:30]} 10. Nxd4 {[%emt 0:00:00]} h6 {[%emt 0:00:00]} 11. Be3 {[%emt 0:00:00]} Bg4 {[%emt 0:00:00]} 12. h3 {[%emt 0:00:00]} Be6 {[%emt 0:00:00]} 13. Rc1 {[%emt 0:00:00]} Rc8 {[%emt 0:00:00]} 14. Nxc6 {[%emt 0:00:00]} bxc6 {[%emt 0:00:00]} 15. Na4 {[%emt 0:00:30]} Qd7 {[%emt 0:00:00]} 16. Nc5 $11 {[%emt 0:07:30]} Bxc5 {[%emt 0:01:30]} 17. Bxc5 {[%emt 0:00:30]} Rfe8 {[%emt 0:00:30]} 18. Kh2 {[%emt 0:00:30]} Bf5 {[%emt 0:00:30]} 19. e3 {[%emt 0:00:30]} Ne4 {[%emt 0:00:30]} 20. Qd4 {[%emt 0:00:30]} h5 {[%emt 0:00:30]} 21. h4 {[%emt 0:00:30]} Re6 {[%emt 0:33:30]} 22. Rc4 {[%emt 0:38:30]} Rg6 {[%emt 0:20:30]} 23. Ra4 {[%emt 0:08:30]} a5 {[%emt 0:02:30]} 24. Rxa5 {[%emt 0:21:30]} Qc7 {[%emt 0:01:30]} 25. Ra7 {[%emt 0:01:55]} Qb8 {[%emt 0:00:00]} 26. Bxe4 {[%emt 0:02:00]} Bxe4 {[%emt 0:00:00]} 27. Qb4 {[%emt 0:00:23]} Qe5 {[%emt 0:01:30]} 28. Qb7 {[%emt 0:00:08]} Qf5 {[%emt 0:00:30]} 29. Qd7 {[%emt 0:05:32]} Qxd7 {[%emt 0:03:30]} 30. Rxd7 {[%emt 0:00:03]} Rf6 {[%emt 0:02:30]} 31. Kg1 {[%emt 0:00:23]} Rb8 {[%emt 0:02:30]} 32. b4 {[%emt 0:00:28]} Bf3 {[%emt 0:03:30]} 33. a4 {[%emt 0:02:30]} Re6 {[%emt 0:00:30]} 34. a5 {[%emt 0:02:55]} Ra8 {[%emt 0:00:30]} 35. Ra1 {[%emt 0:00:00]} Be2 {[%emt 0:01:30]} 36. Ra7 {[%emt 0:01:39]} Rxa7 {[%emt 0:01:30]} 37. Bxa7 {[%emt 0:00:40]} Re8 {[%emt 0:00:30]} 38. Bb6 {[%emt 0:00:21]} Ra8 {[%emt 0:00:00]} 39. Rc1 {[%emt 0:00:20]} Bb5 {[%emt 0:00:00]} 40. f3 {[%emt 0:00:00]} f5 {[%emt 0:00:00]} 41. Kf2 {[%emt 0:01:13]} Rc8 {[%emt 0:02:00]} 42. Ke1 {[%emt 0:00:30]} Kf7 {[%emt 0:00:30]} 43. Kd2 {[%emt 0:00:30]} Ke6 {[%emt 0:00:30]} 44. Kc3 {[%emt 0:00:30]} g6 {[%emt 0:01:30]} 45. Re1 {[%emt 0:01:30]} Ke5 {[%emt 0:02:30]} 46. Bd4+ {[%emt 0:00:30]} Kd6 {[%emt 0:00:30]} 47. e4 {[%emt 0:05:30]} Re8 {[%emt 0:00:30]} 48. Bc5+ {[%emt 0:00:00]} Kd7 {[%emt 0:00:30]} 49. e5 {[%emt 0:01:00]} Ke6 {[%emt 0:00:30]} 50. Bd6 {[%emt 0:00:30]} Ra8 {[%emt 0:01:30]} 51. Kd4 {[%emt 0:02:30]} Ra6 {[%emt 0:00:30]} 52. Rg1 {[%emt 0:03:30]} Ba4 {[%emt 0:04:30]} 53. g4 {[%emt 0:02:30]} hxg4 {[%emt 0:07:30]} 54. fxg4 {[%emt 0:00:30]} fxg4 {[%emt 0:00:30]} 55. Rxg4 {[%emt 0:00:30]} Bc2 {[%emt 0:00:30]} 56. Rg5 {[%emt 0:00:00]} Ra8 {[%emt 0:03:30]} 57. h5 {[%emt 0:00:00]} gxh5 {[%emt 0:00:30]} 58. Rxh5 {[%emt 0:00:00]} Ra6 {[%emt 0:12:30]} 59. Rh6+ {[%emt 0:00:00]} Kd7 {[%emt 0:00:30]} 60. Kc5 {[%emt 0:00:30]} Bf5 {[%emt 0:00:30]} 61. Rf6 {[%emt 0:00:30]} Be6 {[%emt 0:01:30]} 62. Rf8 {[%emt 0:01:30]} Bg4 {[%emt 0:02:30]} 63. Rf7+ {[%emt 0:00:30]} Kd8 {[%emt 0:00:30]} 64. Bc7+ {[%emt 0:01:30]} Ke8 {[%emt 0:02:30]} 65. Rg7 {[%emt 0:00:30]} Be6 {[%emt 0:00:30]} 66. Bb6 {[%emt 0:01:30]} Bd7 {[%emt 0:00:30]} 67. Kd6 {[%emt 0:00:30]} Bf5 {[%emt 0:01:30]} 68. e6 {[%emt 0:00:30]} 1-0

[Event "World Junior U20 Girls 2018"]
[Site "Gebze"]
[Date "2018.09.14"]
[Round "10"]
[White "Salah, Nadezhda"]
[Black "Hilario, Aleyla"]
[Result "0-1"]
[ECO "A28"]
[WhiteElo "1918"]
[BlackElo "2203"]
[Annotator "NA"]
[PlyCount "68"]
[EventDate "2018.09.05"]
[EventType "swiss"]
[EventCountry "TUR"]
[SourceTitle "playchess.com"]
[Source "ChessBase"]
[SourceQuality "1"]
[TimeControl "40/5400+30:1800+30"]

1. c4 {[%emt 0:00:30]} e5 {[%emt 0:00:30]} 2. Nc3 {[%emt 0:00:30]} Nf6 {[%emt 0:00:00]} 3. Nf3 {[%emt 0:00:30]} Nc6 {[%emt 0:12:00]} 4. e3 {[%emt 0:00:30]} Be7 {[%emt 0:00:30]} 5. Qb3 {[%emt 0:00:30]} O-O {[%emt 0:03:30]} 6. Be2 {[%emt 0:01:30]} d6 {[%emt 0:01:30]} 7. O-O {[%emt 0:02:30]} Nd7 {[%emt 0:07:30]} 8. d4 {[%emt 0:02:30]} Kh8 {[%emt 0:00:00]} 9. d5 {[%emt 0:12:30]} Ncb8 {[%emt 0:00:00]} 10. e4 {[%emt 0:00:30]} f5 {[%emt 0:00:30]} 11. exf5 {[%emt 0:03:30]} Nc5 {[%emt 0:00:00]} 12. Qa3 {[%emt 0:06:30]} Bxf5 $11 {[%emt 0:00:00]} 13. Rd1 {[%emt 0:13:30]} Nbd7 {[%emt 0:01:30]} 14. b4 {[%emt 0:00:30]} Ne4 {[%emt 0:00:00]} 15. Be3 {[%emt 0:16:30]} Qe8 {[%emt 0:29:00]} 16. Nxe4 {[%emt 0:10:30]} Bxe4 {[%emt 0:00:30]} 17. Nd2 {[%emt 0:00:30]} Bf5 {[%emt 0:00:00]} 18. Bd3 {[%emt 0:00:00]} Qg6 {[%emt 0:03:00]} 19. Bxf5 {[%emt 0:02:00]} Qxf5 {[%emt 0:00:30]} 20. f3 {[%emt 0:03:30]} Nf6 {[%emt 0:00:30]} 21. Rf1 {[%emt 0:01:30]} Qg6 {[%emt 0:01:30]} 22. Rae1 {[%emt 0:02:07]} b5 {[%emt 0:01:30]} 23. Qa5 {[%emt 0:08:49]} bxc4 {[%emt 0:02:30]} 24. Nxc4 {[%emt 0:04:03]} Qd3 {[%emt 0:01:30]} 25. Rc1 {[%emt 0:00:16]} Qxd5 {[%emt 0:02:30]} 26. Qxc7 {[%emt 0:00:18]} Qe6 {[%emt 0:00:00]} 27. Na5 {[%emt 0:03:19]} Rfc8 {[%emt 0:04:00]} 28. Qb7 {[%emt 0:00:08]} Rcb8 {[%emt 0:00:30]} 29. Qa6 {[%emt 0:03:19]} Nd5 {[%emt 0:01:30]} 30. Bd2 {[%emt 0:01:32]} Nxb4 {[%emt 0:01:30]} 31. Bxb4 {[%emt 0:00:40]} Rxb4 {[%emt 0:00:30]} 32. Rc7 {[%emt 0:00:30]} Bd8 {[%emt 0:01:30]} 33. Rxa7 {[%emt 0:00:43]} Rxa7 {[%emt 0:00:30]} 34. Qxa7 {[%emt 0:00:30]} Bb6+ {[%emt 0:00:00]} 0-1

[Event "World Junior U20 Girls 2018"]
[Site "Gebze"]
[Date "2018.09.14"]
[Round "10"]
[White "Ince, Safiye Oyku"]
[Black "Li, Xinyu"]
[Result "0-1"]
[ECO "B92"]
[WhiteElo "1905"]
[BlackElo "2086"]
[Annotator "NA"]
[PlyCount "93"]
[EventDate "2018.09.05"]
[EventType "swiss"]
[EventCountry "TUR"]
[SourceTitle "playchess.com"]
[Source "ChessBase"]
[SourceQuality "1"]
[TimeControl "40/5400+30:1800+30"]

1. e4 {[%emt 0:00:30]} c5 {[%emt 0:00:30]} 2. Nf3 {[%emt 0:00:30]} d6 {[%emt 0:00:30]} 3. d4 {[%emt 0:00:30]} cxd4 {[%emt 0:00:30]} 4. Nxd4 {[%emt 0:00:30]} Nf6 {[%emt 0:00:00]} 5. Nc3 {[%emt 0:00:00]} a6 {[%emt 0:00:00]} 6. a4 {[%emt 0:00:00]} e5 {[%emt 0:00:00]} 7. Nb3 {[%emt 0:00:00]} Be7 {[%emt 0:00:00]} 8. Be2 {[%emt 0:00:00]} O-O {[%emt 0:00:00]} 9. O-O {[%emt 0:00:00]} Nc6 {[%emt 0:00:00]} 10. f4 {[%emt 0:01:00]} exf4 {[%emt 0:01:30]} 11. Bxf4 {[%emt 0:00:30]} Be6 {[%emt 0:00:00]} 12. Kh1 {[%emt 0:03:30]} Rc8 {[%emt 0:01:00]} 13. Bf3 {[%emt 0:06:30] B92: Sicilian Najdorf: 6 Be2} Ne5 {[%emt 0:00:30] LiveBook: 4 Games} 14. Nd4 {[%emt 0:06:30]} Re8 {[%emt 0:10:30] [#]} 15. Bg5 $146 {[%emt 0:29:30]} ({Predecessor:} 15. h3 g6 16. Rb1 Bf8 17. Be2 Bg7 18. Nxe6 fxe6 19. Qd4 Nf7 20. Qb4 Qc7 {1-0 (58) Marjanovic,S (2505)-Quinteros,M (2545) Bled/ Portoroz 1979}) 15... h6 {[%emt 0:02:30]} 16. Bxf6 {[%emt 0:03:30]} Bxf6 {[%emt 0:00:00]} 17. Be2 {[%emt 0:02:30]} Nc4 {[%emt 0:12:00]} 18. Bxc4 {[%emt 0:00:30]} Rxc4 {[%emt 0:00:30]} 19. Nxe6 {[%emt 0:00:30]} fxe6 {[%emt 0:04:30]} 20. Qh5 {[%emt 0:07:30]} Qe7 {[%emt 0:12:30]} 21. Qf3 {[%emt 0:05:30]} Rec8 {[%emt 0:03:30]} 22. Ra3 {[%emt 0:00:30]} Be5 {[%emt 0:07:30]} 23. Rb3 {[%emt 0:02:30]} Rd4 {[%emt 0:03:30]} 24. Qh3 {[%emt 0:04:30]} Re8 {[%emt 0:03:30]} 25. Rd1 {[%emt 0:01:30]} Rf8 {[%emt 0:02:30]} 26. Rg1 {[%emt 0:11:28]} Rd2 {[%emt 0:01:30]} 27. Nd1 {[%emt 0:02:05]} Rxc2 {[%emt 0:00:30]} 28. Qd3 {[%emt 0:01:16]} Qh4 {[%emt 0:07:30]} 29. h3 {[%emt 0:00:44]} Rc7 {[%emt 0:00:30]} 30. Rb6 {[%emt 0:00:41]} Rcf7 {[%emt 0:01:30]} 31. Rb3 $19 {[%emt 0:02:08]} Qf6 {[%emt 0:02:30]} 32. Ne3 {[%emt 0:00:19]} h5 {[%emt 0:07:19]} 33. Nc4 {[%emt 0:00:16]} Qf4 {[%emt 0:08:25]} 34. Nxe5 {[%emt 0:00:10]} Qxe5 {[%emt 0:00:00]} 35. Rd1 {[%emt 0:00:54]} Rd7 {[%emt 0:06:52]} 36. Rb6 {[%emt 0:00:37]} Rfd8 {[%emt 0:00:57]} 37. Qf3 {[%emt 0:00:42]} Rc8 {[%emt 0:01:06]} 38. Qd3 {[%emt 0:03:02]} d5 {[%emt 0:00:34]} 39. Qe2 {[%emt 0:00:25]} Rdc7 {[%emt 0:00:30]} 40. Re1 {[%emt 0:00:00]} Rc1 {[%emt 0:00:00]} 41. Rxb7 {[%emt 0:02:13]} Qf4 {[%emt 0:06:17]} 42. g3 {[%emt 0:01:30]} Qxg3 {[%emt 0:00:30]} 43. Rd1 {[%emt 0:00:30]} Qxh3+ {[%emt 0:00:30]} 44. Kg1 {[%emt 0:00:30]} Qg3+ {[%emt 0:00:30]} 45. Kh1 {[%emt 0:00:30]} Qh4+ {[%emt 0:01:30]} 46. Kg1 {[%emt 0:00:30]} Qg5+ {[%emt 0:00:30]} 47. Kf2 {[%emt 0:00:30]} 0-1

[Event "World Junior U20 Girls 2018"]
[Site "Gebze"]
[Date "2018.09.14"]
[Round "10"]
[White "Aksoy, Ayca"]
[Black "Stanciu, Ioana-Georgiana"]
[Result "0-1"]
[ECO "D31"]
[WhiteElo "1898"]
[BlackElo "2000"]
[Annotator "NA"]
[PlyCount "102"]
[EventDate "2018.09.05"]
[EventType "swiss"]
[EventCountry "TUR"]
[SourceTitle "playchess.com"]
[Source "ChessBase"]
[SourceQuality "1"]
[TimeControl "40/5400+30:1800+30"]

1. d4 {[%emt 0:00:30]} d5 {[%emt 0:00:30]} 2. Nf3 {[%emt 0:00:00]} c6 {[%emt 0:00:00]} 3. c4 {[%emt 0:02:00]} e6 {[%emt 0:03:00]} 4. Nc3 {[%emt 0:00:30]} dxc4 {[%emt 0:00:00]} 5. a4 {[%emt 0:00:30]} Bb4 {[%emt 0:00:00]} 6. e3 {[%emt 0:02:30]} b5 {[%emt 0:00:30]} 7. Ne5 {[%emt 0:04:30]} Qc7 {[%emt 0:10:30] D31: Queen's Gambit Declined: Semi-Slav without ...Nf6 (+ Marshall Gambit and Noteboom) and Exchange Variation lines without ...Nf6} ({Günstiger ist} 7... Bb7 $11 8. Bd2 a6 9. Ne4 Be7 10. Qg4 g6 11. Qh3 Nd7 12. Nxd7 Qxd7 13. Bc3 b4 14. Bd2 Qd5 15. Nc5 Bc8 {0-1 (39) Alonso Alvarez,A (2286)-Suarez Garcia,C (2455) Gijon 2017}) 8. Qg4 {[%emt 0:14:30]} g6 $146 {[%emt 0:06:30]} ({Predecessor:} 8... Kf8 9. Bd2 Bxc3 10. Bxc3 Nf6 11. Qg3 Qe7 12. Be2 Ne4 13. Qf3 Nxc3 14. bxc3 Bb7 15. O-O {0-1 (29) Lozbenev,P (2118)-Ozerov,D (2095) Moscow 2005}) 9. axb5 {[%emt 0:01:30]} cxb5 {[%emt 0:01:30]} 10. Qf4 {[%emt 0:04:30]} Bb7 {[%emt 0:05:30]} 11. Nxg6 {[%emt 0:07:30]} Qxf4 {[%emt 0:00:30]} 12. Nxf4 {[%emt 0:00:00]} Nf6 {[%emt 0:00:30]} 13. Bd2 {[%emt 0:01:00]} a6 {[%emt 0:00:30]} 14. f3 {[%emt 0:03:30]} Nc6 {[%emt 0:03:30]} 15. Ke2 {[%emt 0:13:30]} Rd8 {[%emt 0:05:30]} 16. Rg1 {[%emt 0:03:30]} Na5 {[%emt 0:02:30]} 17. g4 {[%emt 0:03:30]} Nb3 {[%emt 0:11:30]} 18. Rd1 {[%emt 0:00:30]} Nxd2 {[%emt 0:05:30]} 19. Rxd2 {[%emt 0:00:00]} Nd5 {[%emt 0:00:00]} 20. Nfxd5 {[%emt 0:05:00]} Bxd5 {[%emt 0:00:00]} 21. Bg2 {[%emt 0:02:30]} Rg8 {[%emt 0:06:30]} 22. h3 {[%emt 0:00:30]} a5 {[%emt 0:01:30]} 23. Nxd5 {[%emt 0:05:30]} Rxd5 {[%emt 0:07:30]} (23... exd5 $15 24. Rc2 Kd7) 24. Rc2 {[%emt 0:00:30]} Ke7 {[%emt 0:00:30]} 25. f4 {[%emt 0:01:30]} Rd6 {[%emt 0:03:30]} 26. g5 {[%emt 0:07:55]} Rc8 $14 {[%emt 0:01:30]} 27. Be4 {[%emt 0:01:18]} a4 {[%emt 0:01:30]} 28. h4 {[%emt 0:02:27]} f5 {[%emt 0:03:35]} 29. gxf6+ {[%emt 0:00:30]} Kxf6 {[%emt 0:00:25]} 30. Rg5 {[%emt 0:00:08]} Rb6 {[%emt 0:01:09]} 31. h5 {[%emt 0:06:31]} Rc7 {[%emt 0:00:37]} 32. d5 {[%emt 0:01:02]} exd5 {[%emt 0:08:05]} 33. Bxd5 {[%emt 0:00:59]} Rg7 {[%emt 0:00:07]} 34. Rxg7 {[%emt 0:01:44]} Kxg7 {[%emt 0:00:01]} 35. Kf3 {[%emt 0:00:02]} a3 {[%emt 0:03:24]} 36. bxa3 {[%emt 0:00:30]} Bxa3 {[%emt 0:00:00]} 37. Ra2 {[%emt 0:01:53]} Ra6 {[%emt 0:03:18]} 38. e4 {[%emt 0:02:31]} c3 {[%emt 0:01:04]} 39. e5 {[%emt 0:00:47]} Ra4 {[%emt 0:05:34]} 40. Rg2+ {[%emt 0:00:00]} Kh6 {[%emt 0:00:00]} 41. e6 {[%emt 0:06:43]} Bd6 {[%emt 0:03:41]} 42. Be4 {[%emt 0:01:30]} b4 {[%emt 0:01:30]} 43. Bc2 {[%emt 0:06:43]} Ra3 {[%emt 0:03:30]} 44. Re2 {[%emt 0:09:53]} Be7 {[%emt 0:01:30]} 45. Ke4 {[%emt 0:02:15]} b3 {[%emt 0:00:30]} 46. Bd3 {[%emt 0:00:01]} Ra2 {[%emt 0:04:30]} 47. Re1 {[%emt 0:03:20]} Rd2 {[%emt 0:00:30]} 48. f5 {[%emt 0:04:10]} c2 {[%emt 0:00:30]} 49. Rc1 {[%emt 0:00:42]} b2 {[%emt 0:03:54]} 50. Rxc2 {[%emt 0:00:30]} b1=Q {[%emt 0:00:00]} 51. Rxd2 {[%emt 0:00:06]} Qb4+ {[%emt 0:00:00]} 0-1

[Event "World Junior U20 Girls 2018"]
[Site "Gebze"]
[Date "2018.09.14"]
[Round "10"]
[White "Nass, Sara"]
[Black "Ivana Maria, Furtado"]
[Result "1/2-1/2"]
[ECO "A40"]
[WhiteElo "1888"]
[BlackElo "2144"]
[Annotator "NA"]
[PlyCount "62"]
[EventDate "2018.09.05"]
[EventType "swiss"]
[EventCountry "TUR"]
[SourceTitle "playchess.com"]
[Source "ChessBase"]
[SourceQuality "1"]
[TimeControl "40/5400+30:1800+30"]

1. e4 {[%emt 0:00:30]} e6 {[%emt 0:00:30]} 2. d4 {[%emt 0:00:30]} b6 {[%emt 0:00:30]} 3. c4 {[%emt 0:03:30]} Bb7 {[%emt 0:00:00]} 4. Nc3 {[%emt 0:01:30]} d6 {[%emt 0:01:00]} 5. Nf3 {[%emt 0:00:30] A40: Unusual replies to 1 d4} Nd7 {[%emt 0:00:00]} 6. Bd3 {[%emt 0:01:30]} g6 {[%emt 0:01:00]} 7. O-O {[%emt 0:01:30]} Bg7 {[%emt 0:00:30]} 8. Be3 {[%emt 0:01:30]} Ne7 {[%emt 0:00:30]} (8... Ngf6 9. h3 O-O 10. Qd2 e5 11. d5 Nh5 12. Nh2 a5 13. Be2 Nf4 14. Bf3 Bc8 15. h4 Nc5 16. g3 f5 17. gxf4 Qxh4 18. Bg2 fxe4 19. fxe5 Rf5 {½-½ (19) Xu,Y (2490)-Kamsky,G (2677) Moscow 2018}) 9. Qd2 {[%emt 0:01:30]} h6 {[%emt 0:00:00]} 10. Rfe1 {[%emt 0:05:30]} g5 {[%emt 0:01:00]} 11. h3 {[%emt 0:04:30]} Ng6 {[%emt 0:00:30]} 12. Rad1 $146 {[%emt 0:04:30]} ({Predecessor:} 12. Ne2 O-O {0-1 (35) Batsiashvili,N (2492)-Khurtsidze,N (2383) Teheran 2017}) 12... O-O {[%emt 0:03:30]} 13. d5 {[%emt 0:07:30]} e5 {[%emt 0:03:30]} 14. Ne2 {[%emt 0:00:30]} Nf4 {[%emt 0:05:30]} 15. Ng3 {[%emt 0:02:30]} Bc8 {[%emt 0:07:30]} 16. b4 {[%emt 0:12:30]} Nf6 {[%emt 0:08:30]} 17. c5 {[%emt 0:02:30]} N6h5 {[%emt 0:05:30]} 18. Nxh5 {[%emt 0:02:30]} Nxh5 {[%emt 0:00:30]} 19. cxd6 {[%emt 0:00:30]} cxd6 {[%emt 0:00:30]} 20. Rc1 {[%emt 0:00:30]} Nf4 $14 {[%emt 0:07:30]} 21. Nh2 {[%emt 0:03:30]} f5 {[%emt 0:06:30]} 22. f3 {[%emt 0:01:30]} Nxd3 {[%emt 0:01:30]} 23. Qxd3 {[%emt 0:00:30]} f4 {[%emt 0:00:30]} 24. Bf2 {[%emt 0:01:30]} Bd7 {[%emt 0:03:30]} 25. Rc3 {[%emt 0:01:30]} Rc8 {[%emt 0:05:30]} 26. Rec1 {[%emt 0:00:30]} Rxc3 {[%emt 0:01:30]} 27. Qxc3 {[%emt 0:03:30]} Qe7 {[%emt 0:02:30]} 28. Qd3 {[%emt 0:01:30]} Rc8 {[%emt 0:01:30]} 29. Rxc8+ {[%emt 0:01:30]} Bxc8 {[%emt 0:00:30]} 30. Qc4 {[%emt 0:00:30]} Qb7 {[%emt 0:04:30]} 31. Nf1 {[%emt 0:01:30]} Bd7 {[%emt 0:04:30]} 1/2-1/2